bitfinex/quotes_ETHUSD_20240810
["timestamp","ask_amount","ask_price","bid_price","bid_amount"]
[1723254321652,3.83645,2606.6,2605.9,3.83739]
[1723254321653,3.83703,2606.2,2605.6,6.15897]
[1723254321853,3.8373,2606.0,2605.6,2.3212]
[1723254322454,3.8373,2606.0,2604.9,4.44007093]
[1723254322455,3.83759,2605.8,2605.2,3.83838]
[1723254323855,3.83815,2605.5,2605.0,2.3212]
[1723254324167,3.83831,2605.4,2604.7,3.83919]
[1723254324388,3.83831,2605.4,2604.6,2.3212]
[1723254324389,3.83764,2605.8,2604.6,2.3212]
[1723254324571,4.460514,2605.8,2605.1,2.3212]
[1723254324890,3.83792,2605.6,2605.1,2.3212]
[1723254325892,3.83833,2605.3,2604.7,3.83912]
[1723254326090,3.83833,2605.3,2604.7,3.83913]
[1723254326091,3.83842,2605.3,2604.7,3.83913]
[1723254327155,3.83792,2605.6,2604.8,3.83905]
[1723254327386,3.83809,2605.5,2604.8,3.83905]
[1723254327699,3.83809,2605.5,2604.8,7.67802]
[1723254327875,3.83809,2605.5,2604.9,3.83889]
[1723254328497,7.67595,2605.6,2604.9,3.83889]
[1723254328655,3.83806,2605.5,2604.9,3.83889]
[1723254329224,3.83834,2605.3,2604.7,0.616033]
[1723254329432,3.83834,2605.3,2604.6,7.6785]
[1723254329640,0.4460794,2605.6,2604.4,7.49]
[1723254329641,2.3911,2605.4,2604.4,7.49]
[1723254329785,2.3911,2605.4,2604.1,14.6312]
[1723254329786,3.83855,2605.2,2604.1,2.3212]
[1723254329986,2.3911,2605.4,2604.1,2.3212]
[1723254329987,3.83879,2605.0,2604.4,3.83955]
[1723254330392,3.83893,2604.9,2604.4,3.83955]
[1723254330590,3.83893,2604.9,2604.2,7.67972]
[1723254330892,3.83893,2604.9,2604.3,3.83979]
[1723254331214,3.83879,2605.0,2604.3,3.83979]
[1723254331689,3.83879,2605.0,2604.4,3.83965]
[1723254332028,7.67767,2605.0,2604.5,0.03567283]
[1723254332186,3.83894,2604.9,2604.5,0.03567283]
[1723254332695,4.606557,2605.0,2604.5,0.03567283]
[1723254332893,3.83879,2605.0,2604.5,0.03567283]
[1723254333502,3.83892,2604.9,2604.5,0.03567283]
[1723254333709,3.83892,2604.9,2604.1,2.3212]
[1723254333710,3.83936,2604.6,2603.4,3.84098]
[1723254334044,3.84011,2604.1,2603.4,7.68199]
[1723254334333,3.84049,2603.9,2603.2,7.68272]
[1723254334494,3.84049,2603.9,2603.2,7.68269]
[1723254334687,3.84049,2603.9,2603.2,7.68267]
[1723254335026,7.68099,2603.9,2603.2,4.841717]
[1723254335741,8.074036,2604.5,2603.2,3.8414]
[1723254335742,6.23174,2603.8,2603.2,3.8414]
[1723254336029,3.84069,2603.7,2603.0,3.84161]
[1723254336228,3.84069,2603.7,2603.0,7.68322]
[1723254336438,3.84069,2603.7,2603.1,0.768322]
[1723254336942,3.84069,2603.7,2603.2,3.84142]
[1723254337603,2.3224,2604.2,2603.2,2.3755]
[1723254337809,3.83987,2604.3,2603.6,3.84074]
[1723254337810,3.83989,2604.3,2603.6,3.84074]
[1723254338143,0.9522806,2604.3,2603.7,3.84054]
[1723254338350,3.83975,2604.4,2603.7,3.84054]
[1723254338638,3.83869,2605.1,2604.2,3.83986]
[1723254338939,3.83869,2605.1,2604.4,3.83964]
[1723254338940,0.616109,2605.0,2604.4,3.83964]
[1723254339468,0.616109,2605.0,2604.0,3.84023]
[1723254339602,6.16186,2604.6,2603.9,3.84032]
[1723254339914,6.16181,2604.6,2603.9,3.84029]
[1723254340106,10.00129,2604.6,2603.9,3.84029]
[1723254340445,10.00127,2604.6,2603.9,3.84029]
[1723254341650,5.53811,2605.3,2604.2,3.83983]
[1723254341651,3.83902,2604.9,2604.2,3.83983]
[1723254342007,1.918,2604.6,2604.2,3.83983]
[1723254342400,1.918,2604.6,2604.0,3.84018]
[1723254342401,1.918,2604.6,2604.1,3.84008]
[1723254342747,5.75738,2604.6,2604.1,0.384018]
[1723254343046,1.918,2604.6,2604.0,3.84023]
[1723254343404,1.918,2604.6,2604.0,3.84015]
[1723254343606,1.918,2604.6,2604.1,3.84004]
[1723254343839,1.918,2604.6,2604.0,3.84015]
[1723254344043,1.918,2604.6,2604.3,3.83977]
[1723254345548,1.918,2604.6,2604.5,7.679]
[1723254345849,2.4951,2606.1,2605.7,3.83771]
[1723254346054,2.4951,2606.1,2605.8,3.83757]
[1723254346347,2.4951,2606.4,2605.8,7.67499]
[1723254346547,2.4951,2606.4,2605.8,3.83749]
[1723254347050,4.220293,2606.5,2606.0,3.83719]
[1723254347051,0.383663,2606.5,2606.0,3.83719]
[1723254347346,2.4951,2606.7,2606.2,3.83686]
[1723254347549,2.4951,2607.0,2606.4,3.83668]
[1723254347755,3.83543,2607.3,2606.6,3.83626]
[1723254347939,2.4951,2607.4,2606.8,3.83606]
[1723254348249,3.83512,2607.5,2606.9,3.83596]
[1723254348621,3.83485,2607.7,2607.0,3.83581]
[1723254348809,0.632995,2607.6,2607.0,3.83581]
[1723254349005,4.467935,2607.6,2607.0,3.83581]
[1723254350039,0.632995,2607.6,2607.0,3.83581]
[1723254350466,3.83515,2607.5,2606.9,3.83589]
[1723254351558,3.83515,2607.5,2606.8,3.83606]
[1723254351559,7.67037,2607.5,2606.8,3.83606]
[1723254351762,3.83515,2607.5,2606.8,3.83606]
[1723254351968,3.83515,2607.5,2606.9,3.83595]
[1723254352454,3.83515,2607.5,2606.8,3.83606]
[1723254352673,3.83515,2607.5,2606.8,7.67206]
[1723254352815,3.83515,2607.5,2606.8,3.836]
[1723254353358,3.83515,2607.5,2606.9,3.83596]
[1723254353513,3.83515,2607.5,2606.9,4.603156]
[1723254353709,2.4951,2607.8,2606.6,3.83636]
[1723254353710,3.83549,2607.3,2606.6,3.83636]
[1723254353925,3.83569,2607.1,2606.5,3.83646]
[1723254354143,3.83485,2607.7,2606.2,3.83696]
[1723254354347,3.83604,2606.9,2606.2,3.83691]
[1723254354612,2.4951,2606.7,2606.0,3.83718]
[1723254354851,6.33138,2606.7,2606.1,4.220848]
[1723254355837,3.83603,2606.9,2606.3,3.83682]
[1723254356445,7.67149,2607.1,2606.4,3.83669]
[1723254356826,3.83568,2607.1,2606.5,4.603891]
[1723254358034,3.83613,2606.8,2606.5,0.767351]
[1723254358247,3.83597,2606.9,2606.1,4.220798]
[1723254358449,3.83597,2606.9,2606.1,4.220748]
[1723254358977,3.83573,2607.1,2606.3,3.83685]
[1723254359133,3.83573,2607.1,2606.4,3.83665]
[1723254359134,8.304623,2607.1,2606.4,3.83665]
[1723254359334,2.4951,2607.2,2606.5,3.83644]
[1723254359526,2.4951,2607.2,2606.5,3.83649]
[1723254359734,3.83588,2607.0,2606.4,3.83661]
[1723254359967,3.83588,2607.0,2606.3,3.83676]
[1723254360131,3.83588,2607.0,2606.3,8.48309048]
[1723254360337,3.83571,2607.1,2606.5,3.83656]
[1723254360753,3.83608,2606.9,2606.2,4.2590248]
[1723254361055,3.83622,2606.8,2606.1,3.83703]
[1723254361258,3.83628,2606.7,2606.2,0.383703]
[1723254361417,2.4951,2607.2,2606.3,3.83676]
[1723254361418,3.83574,2607.1,2606.3,3.83676]
[1723254361621,2.4951,2607.2,2606.7,3.83622]
[1723254362245,9.1337,2607.8,2606.7,3.83622]
[1723254362246,3.83513,2607.5,2606.7,3.83622]
[1723254362436,3.83513,2607.5,2606.9,3.83597]
[1723254362875,10.16586,2607.7,2607.0,3.83573]
[1723254363079,3.83518,2607.5,2606.7,7.67235]
[1723254363280,3.659094,2607.7,2606.7,3.83616]
[1723254363504,2.4961,2607.2,2606.5,3.83647]
[1723254363657,2.4961,2607.2,2606.4,3.8367]
[1723254363658,3.83585,2607.0,2606.4,3.8367]
[1723254364001,3.836,2606.9,2606.2,15.16381]
[1723254364198,7.67209,2606.9,2606.3,1.132692]
[1723254364708,2.74571,2607.2,2606.3,1.132692]
[1723254364870,3.836,2606.9,2606.2,7.49]
[1723254365498,3.83636,2606.7,2606.2,7.49]
[1723254365703,7.67272,2606.7,2606.2,7.49]
[1723254366004,3.83636,2606.7,2606.2,8.622703]
[1723254367428,3.83636,2606.7,2606.2,12.459693]
[1723254367600,7.67212,2606.9,2606.2,12.459693]
[1723254367800,3.83574,2607.1,2606.4,3.83657]
[1723254368130,7.67154,2607.1,2606.5,3.83651]
[1723254368337,7.67154,2607.1,2606.6,0.383651]
[1723254368338,3.83574,2607.1,2606.6,0.383651]
[1723254368499,3.83583,2607.0,2606.6,0.383651]
[1723254369434,2.4961,2607.2,2606.6,4.219951]
[1723254369435,6.33173,2607.2,2606.6,4.219951]
[1723254369600,3.83563,2607.2,2606.7,0.8056461]
[1723254369999,3.83563,2607.2,2606.5,3.83651]
[1723254370207,3.83563,2607.2,2606.7,3.83618]
[1723254372397,7.6707,2607.4,2606.8,3.83611]
[1723254372598,7.67064,2607.4,2606.8,4.838649]
[1723254373099,3.83538,2607.3,2606.8,4.838649]
[1723254373710,2.4961,2607.5,2606.9,3.83591]
[1723254373912,7.67006,2607.6,2607.0,3.83574]
[1723254374123,3.8351,2607.5,2607.0,3.83574]
[1723254374323,3.8351,2607.5,2607.1,0.383574]
[1723254375553,3.83524,2607.4,2607.1,0.383574]
[1723254375753,3.83524,2607.4,2606.8,4.838549]
[1723254376613,7.6701,2607.6,2606.9,3.83595]
[1723254376809,3.83501,2607.6,2607.0,3.83579]
[1723254377053,3.83501,2607.6,2606.8,1.002539]
[1723254377054,3.83472,2607.8,2607.2,3.83551]
[1723254377208,3.83472,2607.8,2607.3,0.767106]
[1723254377611,7.66947,2607.8,2607.3,0.767106]
[1723254377833,3.83495,2607.6,2607.3,0.767106]
[1723254378039,3.83512,2607.5,2606.9,3.83588]
[1723254378236,3.8354,2607.3,2606.8,1.002539]
[1723254378439,3.8354,2607.3,2606.7,3.83615]
[1723254378714,2.4961,2607.9,2606.4,12.31]
[1723254378715,3.83517,2607.5,2606.4,12.31]
[1723254378915,3.83497,2607.6,2607.0,3.83574]
[1723254379155,3.83497,2607.6,2607.1,0.767158]
[1723254379823,3.83497,2607.6,2607.1,4.602818]
[1723254380155,3.83497,2607.6,2607.1,4.60126218]
[1723254380353,3.83524,2607.4,2607.1,0.76560218]
[1723254380513,3.83524,2607.4,2606.7,3.83613]
[1723254380713,7.67062,2607.4,2606.8,3.83609]
[1723254380933,3.83483,2607.7,2606.8,1.751532]
[1723254381158,2.3788,2607.3,2606.6,7.49]
[1723254381460,3.83613,2606.8,2606.6,7.49]
[1723254381658,3.83613,2606.8,2606.3,3.9549723]
[1723254382026,7.67234,2606.8,2606.3,1.6296723]
[1723254382232,6.21421,2607.3,2606.1,7.49]
[1723254382233,3.83672,2606.4,2606.1,7.49]
[1723254382413,7.67353,2606.4,2606.1,7.49]
[1723254382761,3.83672,2606.4,2606.1,7.49]
[1723254383053,3.83686,2606.3,2606.1,7.49]
[1723254385947,3.83686,2606.3,2605.8,3.83757]
[1723254386116,3.83686,2606.3,2605.9,2.339757]
[1723254386321,3.83686,2606.3,2605.8,3.83757]
[1723254387357,3.83686,2606.3,2605.7,3.83772]
[1723254388259,3.83741,2606.0,2605.5,9.902]
[1723254388441,3.83741,2606.0,2605.5,7.49]
[1723254388761,3.83787,2605.7,2605.5,7.49]
[1723254389093,3.83787,2605.7,2604.4,5.299]
[1723254389094,3.83849,2605.2,2604.9,7.49]
[1723254389366,3.83828,2605.4,2604.6,3.83927]
[1723254389367,3.83825,2605.4,2604.6,3.83927]
[1723254389570,3.83825,2605.4,2604.7,3.8391]
[1723254389769,3.83825,2605.4,2604.8,0.767837]
[1723254390335,3.83842,2605.3,2604.8,0.767837]
[1723254390535,3.8385,2605.2,2604.8,0.767837]
[1723254391042,3.8385,2605.2,2604.5,21.972]
[1723254391371,3.83933,2604.7,2604.0,6.25214]
[1723254391536,3.83956,2604.5,2603.8,3.84045]
[1723254391735,3.83981,2604.3,2603.9,0.625245]
[1723254392167,3.84003,2604.2,2603.9,0.625245]
[1723254392393,3.84054,2603.8,2603.2,3.84135]
[1723254392673,3.84025,2604.0,2603.4,3.84102]
[1723254392867,3.84025,2604.0,2603.4,7.68205]
[1723254393078,3.84025,2604.0,2603.4,3.84102]
[1723254394373,7.68007,2604.2,2603.5,3.84097]
[1723254394672,3.84014,2604.1,2603.5,4.2634855]
[1723254394980,3.84001,2604.2,2603.5,4.2633755]
[1723254395147,3.84001,2604.2,2603.5,6.6753755]
[1723254395847,7.68007,2604.2,2603.5,6.6753755]
[1723254396033,3.84001,2604.2,2603.6,0.66753755]
[1723254396371,3.83973,2604.4,2603.8,3.84042]
[1723254396531,3.83989,2604.3,2603.6,4.50827755]
[1723254397445,3.83989,2604.3,2603.6,8.34901755]
[1723254397650,3.83989,2604.3,2603.7,3.84067]
[1723254397972,3.83973,2604.4,2603.8,3.84051]
[1723254398947,3.83995,2604.2,2603.6,4.50827755]
[1723254401352,3.83995,2604.2,2603.6,4.50825755]
[1723254401565,3.83987,2604.3,2603.7,3.84056]
[1723254401765,3.83987,2604.3,2603.6,4.50825755]
[1723254402162,3.83987,2604.3,2603.6,8.34899755]
[1723254402370,4.851024,2604.4,2603.6,4.50825755]
[1723254402568,6.14325,2604.8,2604.2,3.83993]
[1723254402741,3.83915,2604.8,2604.2,3.83986]
[1723254402946,3.83892,2604.9,2604.3,3.83974]
[1723254403184,3.83881,2605.0,2604.4,3.83961]
[1723254403544,3.83881,2605.0,2604.3,0.7756392]
[1723254403858,3.83906,2604.9,2604.2,3.83986]
[1723254404081,6.1428,2605.1,2604.0,2.3023]
[1723254404282,2.3041,2605.4,2604.4,3.83954]
[1723254404494,3.839,2604.9,2604.2,7.67969]
[1723254405002,7.67803,2604.9,2604.2,7.67969]
[1723254405211,3.839,2604.9,2604.2,3.83983]
[1723254405364,3.83915,2604.8,2604.3,0.383983]
[1723254405567,3.839,2604.9,2604.3,0.383983]
[1723254405880,3.839,2604.9,2604.3,4.223693]
[1723254406075,3.839,2604.9,2604.3,0.383983]
[1723254406399,3.83909,2604.8,2604.3,0.383983]
[1723254407009,3.83909,2604.8,2604.3,4.223733]
[1723254407185,3.83909,2604.8,2604.3,0.383983]
[1723254407912,7.67768,2605.0,2604.4,3.83964]
[1723254408065,7.67768,2605.0,2604.4,4.2620213]
[1723254409096,3.83893,2604.9,2604.4,4.2620213]
[1723254409872,0.914407,2605.4,2604.5,3.83949]
[1723254409873,3.83853,2605.2,2604.5,3.83949]
[1723254410113,3.83853,2605.2,2604.6,0.81015113]
[1723254410114,3.83862,2605.1,2604.6,0.81015113]
[1723254410306,3.83862,2605.1,2604.5,3.83949]
[1723254411178,8.590977,2605.4,2604.7,3.83911]
[1723254411611,3.83833,2605.3,2604.7,3.83911]
[1723254412175,3.83833,2605.3,2604.8,3.83906]
[1723254412574,7.67658,2605.4,2604.8,3.83906]
[1723254412878,3.8384,2605.3,2604.8,3.83906]
[1723254413078,3.83826,2605.4,2604.8,7.67803]
[1723254413387,3.83826,2605.4,2604.8,4.64938941]
[1723254413588,3.83848,2605.2,2604.8,0.81041941]
[1723254413787,3.83848,2605.2,2604.6,8.10468413]
[1723254414519,3.83848,2605.2,2604.7,3.83921]
[1723254416382,3.83826,2605.4,2604.8,3.83905]
[1723254416594,3.83797,2605.6,2605.0,3.83876]
[1723254416792,3.83796,2605.6,2604.9,3.83883]
[1723254417338,3.83796,2605.6,2605.1,3.83861]
[1723254417840,3.83768,2605.8,2605.1,4.606251]
[1723254418016,3.83746,2605.9,2605.3,3.83832]
[1723254418217,3.83746,2605.9,2605.3,7.67647]
[1723254418401,3.83746,2605.9,2605.3,4.61353331]
[1723254418600,3.83746,2605.9,2605.3,3.83821]
[1723254418850,3.83705,2606.2,2605.4,3.83809]
[1723254419050,3.83705,2606.2,2605.6,3.83778]
[1723254419259,3.83705,2606.2,2605.6,7.67558]
[1723254419748,3.83705,2606.2,2605.7,3.83772]
[1723254420545,3.83726,2606.1,2605.5,3.83802]
[1723254420910,3.83761,2605.8,2605.2,3.83839]
[1723254421112,4.605109,2605.8,2605.2,3.83839]
[1723254421338,3.83776,2605.7,2605.2,3.83839]
[1723254421545,3.83819,2605.4,2604.9,3.83891]
[1723254421724,3.83789,2605.6,2605.0,3.83875]
[1723254421928,3.83789,2605.6,2605.1,3.83861]
[1723254422113,3.83768,2605.8,2605.2,3.83844]
[1723254422651,3.83768,2605.8,2605.0,3.83874]
[1723254422903,4.221448,2605.8,2605.0,3.83874]
[1723254423412,3.83791,2605.6,2605.1,3.83862]
[1723254424764,3.83818,2605.4,2604.8,3.83896]
[1723254424919,4.221388,2605.8,2604.6,11.32927]
[1723254425117,3.83856,2605.2,2604.6,11.32927]
[1723254425437,3.83778,2605.7,2604.6,11.32927]
[1723254425438,3.83888,2605.0,2604.6,7.49]
[1723254425816,3.83907,2604.8,2604.6,7.49]
[1723254426045,3.83907,2604.8,2604.2,3.83986]
[1723254426764,3.83924,2604.7,2604.1,11.33006]
[1723254426965,3.83907,2604.8,2604.2,3.83991]
[1723254427129,3.83907,2604.8,2604.2,5.356916]
[1723254428166,3.977,2605.4,2604.2,1.517006]
[1723254428494,3.83878,2605.0,2604.2,3.83986]
[1723254429079,7.81522,2605.4,2604.1,7.49]
[1723254429080,3.83945,2604.6,2604.1,7.49]
[1723254429255,3.83959,2604.5,2603.8,19.99092]
[1723254429560,3.83945,2604.6,2603.9,2.748092]
[1723254429561,3.83966,2604.4,2603.9,2.748092]
[1723254431127,3.83945,2604.6,2603.9,2.748092]
[1723254431327,3.83914,2604.8,2604.3,3.83977]
[1723254432425,3.83885,2605.0,2604.2,3.83983]
[1723254432763,3.83885,2605.0,2604.5,3.8395]
[1723254433326,3.83855,2605.2,2604.6,3.83932]
[1723254433968,3.8388,2605.0,2604.5,0.383956]
[1723254434274,3.83904,2604.9,2604.2,7.67973]
[1723254434560,3.83904,2604.9,2604.2,7.6797]
[1723254435327,3.83904,2604.9,2604.3,3.83979]
[1723254435564,3.8388,2605.0,2604.2,3.83984]
[1723254435776,3.8388,2605.0,2604.4,3.83964]
[1723254435931,2.4294,2604.9,2604.4,3.83964]
[1723254436350,6.26834,2604.9,2604.4,3.83953]
[1723254436763,2.4294,2604.9,2604.4,3.83953]
[1723254436976,3.83828,2605.4,2604.5,2.3963]
[1723254437165,2.3501,2605.3,2604.8,3.83896]
[1723254438146,6.18847,2605.3,2604.8,3.83896]
[1723254438485,6.18847,2605.3,2604.7,6.2355]
[1723254438974,6.18847,2605.3,2604.8,3.83901]
[1723254440734,2.3501,2605.3,2604.8,3.83898]
[1723254440936,2.3501,2605.3,2604.9,3.83889]
[1723254441340,6.1882,2605.5,2605.0,3.8387]
[1723254441762,6.1882,2605.5,2604.9,3.016919]
[1723254442000,3.83834,2605.3,2604.7,6.23257]
[1723254442153,2.313,2605.2,2604.7,10.07169]
[1723254442352,2.313,2605.2,2604.8,3.83906]
[1723254442553,2.313,2605.4,2604.9,3.83883]
[1723254442795,2.313,2605.4,2604.9,7.67766]
[1723254443089,2.313,2605.4,2604.9,3.83883]
[1723254443290,2.313,2605.4,2604.9,7.1007418]
[1723254444155,2.313,2605.4,2605.1,3.83861]
[1723254444501,2.313,2605.4,2605.0,3.83875]
[1723254447117,2.313,2605.7,2605.3,3.83819]
[1723254447423,3.83761,2605.8,2605.3,6.23159]
[1723254447627,2.313,2605.7,2605.3,3.83819]
[1723254447808,2.313,2605.6,2605.0,0.71007418]
[1723254448010,2.313,2605.4,2604.9,11.32882]
[1723254448410,2.313,2605.4,2605.1,3.83861]
[1723254448715,2.313,2605.7,2605.3,3.83824]
[1723254448883,2.313,2605.9,2605.4,3.83813]
[1723254449084,2.313,2605.9,2605.5,3.83801]
[1723254449308,2.313,2605.9,2605.5,4.844975]
[1723254449515,2.313,2605.9,2605.5,3.83801]
[1723254449895,3.83709,2606.2,2605.5,3.83791]
[1723254450104,6.15009,2606.2,2605.7,2.3934]
[1723254450507,6.15009,2606.2,2605.6,3.83788]
[1723254450828,3.83716,2606.1,2605.6,3.83788]
[1723254451124,2.313,2606.2,2605.7,3.83766]
[1723254451338,0.60128532,2607.0,2605.6,4.844799]
[1723254451339,6.14959,2606.5,2605.8,0.07675047]
[1723254451483,6.14959,2606.5,2605.9,2.3934]
[1723254451687,2.313,2606.5,2606.0,4.07661]
[1723254451924,2.313,2606.5,2606.0,3.83727]
[1723254452288,2.313,2606.5,2605.9,2.3934]
[1723254452508,3.83673,2606.4,2605.8,7.67499]
[1723254452726,3.83673,2606.4,2605.9,3.83742]
[1723254453554,2.313,2606.5,2606.1,3.83713]
[1723254453752,2.313,2606.5,2606.0,3.83726]
[1723254454173,2.313,2606.5,2606.0,7.67447]
[1723254454562,2.313,2606.5,2606.0,3.83721]
[1723254455082,2.313,2606.5,2606.0,3.8372]
[1723254456365,2.313,2606.5,2606.2,3.83697]
[1723254456567,3.8362,2606.8,2606.5,3.83644]
[1723254456568,2.4549,2606.8,2606.5,3.83644]
[1723254456773,2.4549,2606.8,2606.1,2.4176]
[1723254456774,2.4549,2607.1,2606.6,4.220044]
[1723254456973,2.4549,2607.1,2606.6,3.8364]
[1723254457561,2.4549,2607.1,2606.6,3.83633]
[1723254457764,10.12552,2607.4,2606.8,3.83611]
[1723254457954,0.383529,2607.3,2606.8,3.83611]
[1723254458352,0.383529,2607.3,2606.8,7.67213]
[1723254458557,6.29019,2607.4,2606.8,3.83602]
[1723254459177,3.83546,2607.3,2606.8,3.83602]
[1723254459392,6.29019,2607.4,2606.6,6.25392]
[1723254459393,3.83555,2607.2,2606.6,6.25392]
[1723254459550,3.83576,2607.1,2606.6,6.25392]
[1723254459757,2.4549,2607.0,2606.4,7.49]
[1723254459958,2.4549,2606.7,2606.4,7.49]
[1723254460275,2.4549,2606.7,2606.4,3.83667]
[1723254460476,2.4549,2606.9,2606.4,7.67334]
[1723254460675,2.4549,2606.9,2606.4,3.83667]
[1723254460890,2.4549,2606.9,2606.4,3.83662]
[1723254461192,3.8362,2606.8,2606.2,3.83688]
[1723254461358,6.291,2606.9,2606.2,4.846051]
[1723254461557,6.291,2606.9,2606.4,3.83663]
[1723254462293,6.291,2606.9,2606.3,3.83683]
[1723254462294,3.83612,2606.8,2606.3,3.83683]
[1723254462454,3.83612,2606.8,2606.2,8.682971]
[1723254462654,6.291,2606.9,2606.3,4.5632051]
[1723254463600,6.29095,2606.9,2606.3,4.5632051]
[1723254464198,6.28856,2607.1,2606.5,3.83653]
[1723254464398,3.83546,2607.3,2606.7,3.83625]
[1723254465397,3.83554,2607.2,2606.7,3.83625]
[1723254465996,7.67095,2607.3,2606.7,3.83625]
[1723254466157,3.83553,2607.2,2606.7,3.83625]
[1723254466912,3.83546,2607.3,2606.7,3.83625]
[1723254467207,6.28797,2607.5,2606.9,3.83594]
[1723254467368,6.28797,2607.5,2606.9,7.67188]
[1723254467562,6.28797,2607.5,2607.0,3.83578]
[1723254467765,3.83532,2607.4,2606.8,3.83603]
[1723254468396,3.83532,2607.4,2606.8,4.5439488]
[1723254468981,6.28797,2607.5,2606.9,7.67183]
[1723254469309,6.28797,2607.5,2607.0,3.83581]
[1723254469513,6.28797,2607.5,2606.9,3.83588]
[1723254469677,6.28797,2607.5,2606.9,8.50974788]
[1723254470374,3.83485,2607.7,2607.1,3.83559]
[1723254470583,3.83485,2607.7,2607.2,3.8355]
[1723254470783,2.4528,2607.8,2607.2,3.8355]
[1723254470980,2.4528,2607.8,2607.4,3.83523]
[1723254471311,2.4528,2607.8,2607.5,3.83506]
[1723254471464,3.83436,2608.0,2607.5,3.83506]
[1723254472596,6.28707,2608.1,2607.5,3.83506]
[1723254472941,6.28707,2608.1,2607.5,4.602029]
[1723254473064,6.28707,2608.1,2607.5,7.67]
[1723254473264,6.28707,2608.1,2607.5,3.83499]
[1723254473513,6.28707,2608.1,2607.5,7.66999]
[1723254473714,6.28707,2608.1,2607.5,3.83499]
[1723254473868,6.28707,2608.1,2607.5,4.218489]
[1723254474616,3.83427,2608.1,2607.5,4.218459]
[1723254474767,3.83414,2608.2,2607.6,3.83493]
[1723254475613,3.83393,2608.3,2607.7,3.83475]
[1723254475786,3.83393,2608.3,2607.7,4.26424388]
[1723254476488,3.83393,2608.3,2607.7,8.09892388]
[1723254476689,6.28662,2608.4,2607.8,3.83464]
[1723254476897,10.12051,2608.4,2607.8,3.83464]
[1723254477101,6.28662,2608.4,2607.8,4.64452139]
[1723254478318,3.83402,2608.3,2607.8,0.80988139]
[1723254478475,3.83445,2608.0,2607.5,0.383499]
[1723254478671,3.83463,2607.9,2607.4,7.49]
[1723254480344,6.27765,2608.0,2607.4,7.49]
[1723254480508,3.83451,2607.9,2607.4,7.49]
[1723254481138,3.83451,2607.9,2607.3,7.67057]
[1723254481296,3.83451,2607.9,2607.4,0.620347]
[1723254485937,3.83412,2608.2,2607.5,3.83508]
[1723254486142,3.83412,2608.2,2607.7,3.83469]
[1723254486313,2.3905,2608.3,2607.7,3.83469]
[1723254486649,2.3905,2608.3,2607.7,3.89957574]
[1723254486851,6.22399,2608.6,2607.9,3.83437]
[1723254487140,3.83326,2608.8,2608.2,3.83402]
[1723254487317,3.83337,2608.7,2608.2,3.83402]
[1723254488504,3.83326,2608.8,2608.2,3.83402]
[1723254488705,3.83349,2608.6,2608.2,1.015243]
[1723254489299,7.66656,2608.8,2608.2,1.015243]
[1723254489497,2.3905,2608.9,2608.2,4.849293]
[1723254489752,3.83278,2609.1,2608.3,0.4849293]
[1723254489901,6.22317,2609.2,2608.6,3.83347]
[1723254490402,10.05584,2609.2,2608.6,3.83347]
[1723254490611,6.22317,2609.2,2608.6,3.83334]
[1723254491335,6.22317,2609.2,2608.4,2.4841]
[1723254491336,3.83298,2609.0,2608.2,7.66792]
[1723254491509,3.83318,2608.8,2608.3,4.217301]
[1723254492833,3.83318,2608.8,2608.3,0.383401]
[1723254493030,3.83298,2609.0,2608.3,0.383401]
[1723254493202,3.83297,2609.0,2608.4,4.2554931]
[1723254493652,3.83297,2609.0,2608.4,0.4217331]
[1723254494108,3.83318,2608.8,2608.4,0.4217331]
[1723254494729,3.83297,2609.0,2608.4,4.2553831]
[1723254494941,3.83297,2609.0,2608.5,0.46387841]
[1723254495240,3.83297,2609.0,2608.5,4.29748841]
[1723254495418,3.83297,2609.0,2608.5,0.46387841]
[1723254495603,3.83318,2608.8,2608.3,0.383401]
[1723254496044,3.83318,2608.8,2608.3,4.217261]
[1723254496264,3.83297,2609.0,2608.4,3.83375]
[1723254496540,3.83297,2609.0,2608.4,7.66743]
[1723254496844,3.83297,2609.0,2608.5,0.8050831]
[1723254497420,3.83297,2609.0,2608.5,3.0836831]
[1723254497601,6.22317,2609.2,2608.6,3.9100457]
[1723254498318,6.22317,2609.2,2608.6,3.9100357]
[1723254498703,6.22317,2609.2,2608.6,7.7434257]
[1723254499037,3.83267,2609.2,2608.6,7.7434257]
[1723254500144,3.83279,2609.1,2608.6,3.9100357]
[1723254500330,3.83279,2609.1,2608.6,0.61886357]
[1723254501052,3.83279,2609.1,2608.6,4.45232357]
[1723254501205,7.6654,2609.2,2608.6,4.45232357]
[1723254501408,3.83267,2609.2,2608.7,0.67309236]
[1723254501848,3.83289,2609.0,2608.7,0.67309236]
[1723254502067,7.66539,2609.2,2608.5,2.2786]
[1723254502666,7.66539,2609.2,2608.6,3.83346]
[1723254502827,7.66539,2609.2,2608.6,4.828032]
[1723254504547,7.66537,2609.2,2608.6,4.827962]
[1723254505634,3.83267,2609.2,2608.6,8.661352]
[1723254505844,3.83267,2609.2,2608.6,4.827962]
[1723254506037,7.66535,2609.2,2608.6,4.827962]
[1723254506232,7.66535,2609.2,2608.7,0.7106562]
[1723254506233,3.83267,2609.2,2608.7,0.7106562]
[1723254506437,7.66535,2609.2,2608.7,0.7106562]
[1723254506850,3.83267,2609.2,2608.7,0.7106562]